[Event "11th Chennai Open-GM 2019"]
[Site "Chennai"]
[Date "2019.01.21"]
[Round "6"]
[White "Vignesh N R"]
[Black "Srihari L R"]
[Result "1-0"]
[ECO "B42"]
[WhiteElo "2461"]
[BlackElo "2253"]
[Annotator "ChessBase"]
[PlyCount "103"]
[EventDate "2019.01.18"]
[EventType "swiss"]
[EventCountry "IND"]
[SourceTitle "playchess.com"]
[Source "ChessBase"]
[SourceQuality "1"]
[TimeControl "5400+30"]

1. e4 {[%emt 0:00:00]} c5 {[%emt 0:00:15]} 2. Nf3 {[%emt 0:00:00]} e6 {[%emt 0:00:10]} 3. d4 {[%emt 0:00:00]} cxd4 {[%emt 0:00:07]} 4. Nxd4 {[%emt 0:00:01]} a6 {[%emt 0:00:08]} 5. Bd3 {[%emt 0:00:22]} Bc5 {[%emt 0:00:24]} 6. Nb3 {[%emt 0:00:10]} Ba7 {[%emt 0:00:13]} 7. Qe2 {[%emt 0:02:14]} d6 {[%emt 0:03:12]} 8. Be3 {[%emt 0:00:12]} Nc6 {[%emt 0:01:23]} 9. N1d2 {[%emt 0:00:21]} Nf6 {[%emt 0:01:42]} 10. O-O {[%emt 0:01:22]} Bxe3 {[%emt 0:01:05]} 11. Qxe3 {[%emt 0:00:09]} O-O {[%emt 0:00:14]} 12. Rfd1 {[%emt 0:01:13]} Qc7 {[%emt 0:04:33]} 13. Be2 {[%emt 0:08:00]} Ne5 {[%emt 0:02:37]} 14. h3 {[%emt 0:01:13]} b5 {[%emt 0:09:04]} 15. a4 {[%emt 0:02:20]} Bd7 {[%emt 0:04:14]} 16. axb5 {[%emt 0:12:17]} axb5 {[%emt 0:05:58]} 17. f4 {[%emt 0:00:31]} Ng6 {[%emt 0:06:55]} 18. c3 {[%emt 0:00:09]} e5 {[%emt 0:02:30]} 19. f5 {[%emt 0:02:52]} Ne7 {[%emt 0:05:49]} 20. g4 {[%emt 0:03:28]} d5 {[%emt 0:01:02]} 21. Qc5 {[%emt 0:01:34]} Qxc5+ {[%emt 0:01:52]} 22. Nxc5 {[%emt 0:00:02]} Bc6 {[%emt 0:00:09]} 23. Nf3 {[%emt 0:04:05]} Nxe4 {[%emt 0:11:42]} 24. Nxe4 {[%emt 0:00:18]} dxe4 {[%emt 0:00:04]} 25. Nxe5 {[%emt 0:00:06]} b4 {[%emt 0:09:12]} 26. cxb4 {[%emt 0:07:27]} Ba4 {[%emt 0:02:22]} 27. Rd4 {[%emt 0:02:12]} e3 {[%emt 0:10:15]} 28. Ra3 {[%emt 0:02:14]} h6 {[%emt 0:01:33]} 29. b5 {[%emt 0:01:24]} Bc2 {[%emt 0:00:48]} 30. Rxe3 {[%emt 0:00:47]} Bxf5 {[%emt 0:01:18]} 31. gxf5 {[%emt 0:02:35]} Nxf5 {[%emt 0:00:02]} 32. Rdd3 {[%emt 0:00:09]} Nxe3 {[%emt 0:00:32]} 33. Rxe3 {[%emt 0:00:02]} Ra2 {[%emt 0:01:19]} 34. Nc4 {[%emt 0:00:06]} Rb8 {[%emt 0:02:07]} 35. b6 {[%emt 0:00:06]} Rxb2 {[%emt 0:02:54]} 36. Nxb2 {[%emt 0:00:08]} Rxb6 {[%emt 0:00:03]} 37. Nc4 {[%emt 0:00:15]} Rb1+ {[%emt 0:00:05]} 38. Kf2 {[%emt 0:00:06]} Rb7 {[%emt 0:00:33]} 39. Ne5 {[%emt 0:00:42]} f5 {[%emt 0:00:46]} 40. Rf3 {[%emt 0:01:20]} g5 {[%emt 0:00:56]} 41. Rxf5 {[%emt 0:00:07]} Kg7 {[%emt 0:00:03]} 42. Bh5 {[%emt 0:00:13]} Rb2+ {[%emt 0:00:07]} 43. Kg3 {[%emt 0:00:07]} Rb3+ {[%emt 0:00:14]} 44. Rf3 {[%emt 0:00:02]} Rb5 {[%emt 0:00:14]} 45. Rf7+ {[%emt 0:00:29]} Kg8 {[%emt 0:00:09]} 46. Ng4 {[%emt 0:00:29]} Rb3+ {[%emt 0:00:06]} 47. Kf2 {[%emt 0:00:21]} Rb2+ {[%emt 0:00:26]} 48. Ke1 {[%emt 0:00:07]} Rb1+ {[%emt 0:00:04]} 49. Kd2 {[%emt 0:00:04]} Rb2+ {[%emt 0:00:04]} 50. Kc3 {[%emt 0:00:05]} Rb6 {[%emt 0:00:03]} 51. Nf6+ {[%emt 0:00:07]} Rxf6 {[%emt 0:00:04]} 52. Rxf6 {[%emt 0:00:04]} 1-0

[Event "11th Chennai Open-GM 2019"]
[Site "Chennai"]
[Date "2019.01.21"]
[Round "6"]
[White "Nguyen, Van Huy"]
[Black "Karthik Venkataraman"]
[Result "1/2-1/2"]
[ECO "D85"]
[WhiteElo "2450"]
[BlackElo "2515"]
[Annotator "RC"]
[PlyCount "62"]
[EventDate "2019.01.18"]
[EventType "swiss"]
[EventCountry "IND"]
[SourceTitle "playchess.com"]
[Source "ChessBase"]
[SourceQuality "1"]
[TimeControl "5400+30"]

1. d4 {[%emt 0:00:41]} Nf6 {[%emt 0:02:04]} 2. c4 {[%emt 0:01:50]} g6 {[%emt 0:00:05]} 3. Nc3 {[%emt 0:00:27]} d5 {[%emt 0:00:05]} 4. cxd5 {[%emt 0:00:21]} Nxd5 {[%emt 0:00:03]} 5. Bd2 {[%emt 0:00:09]} Nb6 {[%emt 0:00:04]} 6. e4 {[%emt 0:00:50]} Bg7 {[%emt 0:00:07]} 7. Be3 {[%emt 0:00:24]} O-O {[%emt 0:00:06]} 8. h3 {[%emt 0:00:37]} e5 {[%emt 0:00:05]} 9. Nf3 {[%emt 0:02:05]} exd4 {[%emt 0:00:04]} 10. Bxd4 {[%emt 0:01:02]} Nc6 {[%emt 0:00:11]} 11. Bxg7 {[%emt 0:02:32]} Kxg7 {[%emt 0:00:07]} 12. Bb5 {[%emt 0:02:56]} Qf6 {[%emt 0:03:33]} 13. O-O {[%emt 0:05:46]} Rd8 {[%emt 0:00:22]} 14. Qe2 {[%emt 0:01:04]} Be6 {[%emt 0:13:34]} 15. Rfd1 {[%emt 0:19:57]} Na5 {[%emt 0:08:12]} 16. Rxd8 {[%emt 0:09:31]} Rxd8 {[%emt 0:00:18]} 17. Rd1 {[%emt 0:00:07]} Rxd1+ {[%emt 0:01:12]} 18. Qxd1 {[%emt 0:00:31]} Nac4 {[%emt 0:00:07]} 19. Bxc4 {[%emt 0:01:22]} Nxc4 {[%emt 0:00:09]} 20. Qe2 {[%emt 0:07:59]} c6 {[%emt 0:00:22]} 21. Nd1 {[%emt 0:07:39]} a5 {[%emt 0:15:02]} 22. b3 {[%emt 0:03:37]} Ne5 {[%emt 0:03:28]} 23. Nd4 {[%emt 0:05:16]} Bd7 {[%emt 0:16:01]} 24. Qd2 {[%emt 0:01:40]} c5 {[%emt 0:02:59]} 25. Ne2 {[%emt 0:00:30]} Qf3 {[%emt 0:04:45]} 26. Qd5 {[%emt 0:04:03]} Qxe2 {[%emt 0:01:37]} 27. Qxe5+ {[%emt 0:00:06]} Kg8 {[%emt 0:00:03]} 28. Qb8+ {[%emt 0:00:07]} Kg7 {[%emt 0:00:05]} 29. Qe5+ {[%emt 0:00:01]} Kg8 {[%emt 0:00:05]} 30. Qb8+ {[%emt 0:08:34]} Kg7 {[%emt 0:00:11]} 31. Qe5+ {[%emt 0:00:09]} Kg8 {[%emt 0:01:48]} 1/2-1/2

[Event "11th Chennai Open-GM 2019"]
[Site "Chennai"]
[Date "2019.01.21"]
[Round "6"]
[White "Shyaamnikhil P"]
[Black "Lugovskoy, Maxim"]
[Result "0-1"]
[ECO "C18"]
[WhiteElo "2446"]
[BlackElo "2445"]
[Annotator "ChessBase"]
[PlyCount "96"]
[EventDate "2019.01.18"]
[EventType "swiss"]
[EventCountry "IND"]
[SourceTitle "playchess.com"]
[Source "ChessBase"]
[SourceQuality "1"]
[TimeControl "5400+30"]

1. e4 {[%emt 0:00:36]} e6 {[%emt 0:00:00]} 2. d4 {[%emt 0:00:16]} d5 {[%emt 0:00:00]} 3. Nc3 {[%emt 0:02:37]} Bb4 {[%emt 0:00:00]} 4. e5 {[%emt 0:03:00]} c5 {[%emt 0:00:04]} 5. a3 {[%emt 0:00:07]} Bxc3+ {[%emt 0:00:05]} 6. bxc3 {[%emt 0:00:04]} Ne7 {[%emt 0:00:05]} 7. Qg4 {[%emt 0:00:09]} Qc7 {[%emt 0:00:04]} 8. Qxg7 {[%emt 0:00:08]} Rg8 {[%emt 0:00:04]} 9. Qxh7 {[%emt 0:00:05]} cxd4 {[%emt 0:00:03]} 10. Ne2 {[%emt 0:00:09]} Nbc6 {[%emt 0:00:04]} 11. f4 {[%emt 0:00:13]} Bd7 {[%emt 0:00:03]} 12. h4 {[%emt 0:01:54]} O-O-O {[%emt 0:02:00]} 13. Qd3 {[%emt 0:01:39]} dxc3 {[%emt 0:00:05]} 14. Qxc3 {[%emt 0:00:38]} Nf5 {[%emt 0:01:51]} 15. Rh3 {[%emt 0:04:05]} d4 {[%emt 0:02:12]} 16. Qc4 {[%emt 0:01:02]} f6 {[%emt 0:08:11]} 17. exf6 {[%emt 0:03:18]} Nd6 {[%emt 0:01:21]} 18. Qb3 {[%emt 0:03:43]} Ne4 {[%emt 0:04:50]} 19. f7 {[%emt 0:20:31]} Rgf8 {[%emt 0:01:19]} 20. Qd3 {[%emt 0:00:33]} Nc5 {[%emt 0:02:47]} 21. Qc4 {[%emt 0:03:24]} Na5 {[%emt 0:13:19]} 22. Qb4 {[%emt 0:05:37]} e5 {[%emt 0:01:31]} 23. Rg3 {[%emt 0:02:24]} Rxf7 {[%emt 0:09:33]} 24. fxe5 {[%emt 0:02:53]} d3 {[%emt 0:08:10]} 25. Re3 {[%emt 0:07:07]} dxe2 {[%emt 0:03:08]} 26. Bxe2 {[%emt 0:00:06]} b6 {[%emt 0:01:18]} 27. Rb1 {[%emt 0:03:02]} Be6 {[%emt 0:00:37]} 28. h5 {[%emt 0:02:42]} Nc6 {[%emt 0:01:57]} 29. Qc3 {[%emt 0:01:32]} Nd4 {[%emt 0:00:28]} 30. Rb4 {[%emt 0:00:16]} Nxe2 {[%emt 0:00:24]} 31. Kxe2 {[%emt 0:00:12]} Rg8 {[%emt 0:05:24]} 32. Rg3 {[%emt 0:00:26]} Rxg3 {[%emt 0:00:51]} 33. Qxg3 {[%emt 0:00:06]} Rg7 {[%emt 0:00:06]} 34. Qf3 {[%emt 0:00:31]} Qxe5+ {[%emt 0:00:15]} 35. Be3 {[%emt 0:00:07]} Bd5 {[%emt 0:02:36]} 36. Qf8+ {[%emt 0:00:15]} Kb7 {[%emt 0:00:51]} 37. g4 {[%emt 0:01:18]} Ne4 {[%emt 0:03:07]} 38. Bf4 {[%emt 0:00:40]} Qc3 {[%emt 0:15:47]} 39. Qb8+ {[%emt 0:01:53]} Ka6 {[%emt 0:00:41]} 40. Ra4+ {[%emt 0:06:02]} Kb5 {[%emt 0:00:04]} 41. Rb4+ {[%emt 0:00:06]} Ka5 {[%emt 0:00:36]} 42. Qe5 {[%emt 0:00:41]} Qxc2+ {[%emt 0:00:38]} 43. Ke1 {[%emt 0:00:06]} Qf2+ {[%emt 0:03:00]} 44. Kd1 {[%emt 0:00:07]} Qf1+ {[%emt 0:01:32]} 45. Kc2 {[%emt 0:00:08]} Qf2+ {[%emt 0:01:56]} 46. Kd1 {[%emt 0:00:46]} Qg1+ {[%emt 0:00:21]} 47. Kc2 {[%emt 0:00:07]} Qc5+ {[%emt 0:00:06]} 48. Kb2 {[%emt 0:00:20]} Rxg4 {[%emt 0:00:56]} 0-1

[Event "11th Chennai Open-GM 2019"]
[Site "Chennai"]
[Date "2019.01.21"]
[Round "6"]
[White "Manik, Mikulas"]
[Black "Pranesh M"]
[Result "1/2-1/2"]
[ECO "C65"]
[WhiteElo "2413"]
[BlackElo "2125"]
[Annotator "ChessBase"]
[PlyCount "83"]
[EventDate "2019.01.18"]
[EventType "swiss"]
[EventCountry "IND"]
[SourceTitle "playchess.com"]
[Source "ChessBase"]
[SourceQuality "1"]
[TimeControl "5400+30"]

1. e4 {[%emt 0:00:00]} e5 {[%emt 0:00:00]} 2. Nf3 {[%emt 0:00:00]} Nc6 {[%emt 0:00:00]} 3. Bb5 {[%emt 0:00:00]} Nf6 {[%emt 0:00:00]} 4. d3 {[%emt 0:00:00]} Bc5 {[%emt 0:00:00]} 5. c3 {[%emt 0:00:09]} d6 {[%emt 0:00:01]} 6. O-O {[%emt 0:00:20]} O-O {[%emt 0:00:16]} 7. h3 {[%emt 0:01:36]} Ne7 {[%emt 0:00:28]} 8. Re1 {[%emt 0:02:12]} Ng6 {[%emt 0:00:21]} 9. d4 {[%emt 0:02:10]} Bb6 {[%emt 0:00:44]} 10. Be3 {[%emt 0:03:48]} exd4 {[%emt 0:04:08]} 11. Bxd4 {[%emt 0:00:55]} c5 {[%emt 0:00:23]} 12. Bxf6 {[%emt 0:00:16]} Qxf6 {[%emt 0:00:05]} 13. Nbd2 {[%emt 0:00:29]} Nf4 {[%emt 0:02:01]} 14. Bf1 {[%emt 0:01:01]} Be6 {[%emt 0:05:04]} 15. h4 {[%emt 0:10:44]} Rad8 {[%emt 0:14:39]} 16. g3 {[%emt 0:08:22]} Ng6 {[%emt 0:05:15]} 17. Nc4 {[%emt 0:00:34]} d5 {[%emt 0:02:19]} 18. e5 {[%emt 0:00:17]} Qe7 {[%emt 0:00:21]} 19. Nxb6 {[%emt 0:02:28]} axb6 {[%emt 0:00:12]} 20. Qb3 {[%emt 0:12:49]} Qc7 {[%emt 0:03:24]} 21. Qc2 {[%emt 0:00:21]} h6 {[%emt 0:05:10]} 22. Bg2 {[%emt 0:06:06]} Ne7 {[%emt 0:03:39]} 23. Nd2 {[%emt 0:05:16]} d4 {[%emt 0:05:53]} 24. Be4 {[%emt 0:00:40]} Nc6 {[%emt 0:01:54]} 25. f4 {[%emt 0:00:54]} Qd7 {[%emt 0:10:47]} 26. Nf3 {[%emt 0:06:21]} Bg4 {[%emt 0:02:00]} 27. Qf2 {[%emt 0:04:14]} Qe6 {[%emt 0:06:00]} 28. cxd4 {[%emt 0:02:01]} Nxd4 {[%emt 0:03:32]} 29. Nh2 {[%emt 0:03:11]} Bf5 {[%emt 0:00:48]} 30. Nf1 {[%emt 0:00:55]} Rd7 {[%emt 0:01:42]} 31. b3 {[%emt 0:02:28]} Rfd8 {[%emt 0:00:50]} 32. Rac1 {[%emt 0:00:22]} Bxe4 {[%emt 0:02:50]} 33. Rxe4 {[%emt 0:00:05]} Qc6 {[%emt 0:00:14]} 34. Rce1 {[%emt 0:03:31]} Qe6 {[%emt 0:03:26]} 35. Rc1 {[%emt 0:00:22]} Nf5 {[%emt 0:00:49]} 36. Rce1 {[%emt 0:06:38]} Rd3 {[%emt 0:00:27]} 37. Qg2 {[%emt 0:02:22]} b5 {[%emt 0:01:10]} 38. Rc1 {[%emt 0:04:01]} b6 {[%emt 0:00:45]} 39. Kh2 {[%emt 0:00:44]} Qg6 {[%emt 0:00:34]} 40. Rce1 {[%emt 0:01:03]} h5 41. Rc1 Qe6 42. Kg1 1/2-1/2

[Event "11th Chennai Open-GM 2019"]
[Site "Chennai"]
[Date "2019.01.21"]
[Round "6"]
[White "Sarwat, Walaa"]
[Black "Pantsulaia, Levan"]
[Result "0-1"]
[ECO "B28"]
[WhiteElo "2265"]
[BlackElo "2597"]
[Annotator "ChessBase"]
[PlyCount "84"]
[EventDate "2019.01.18"]
[EventType "swiss"]
[EventCountry "IND"]
[SourceTitle "playchess.com"]
[Source "ChessBase"]
[SourceQuality "1"]
[TimeControl "5400+30"]

1. e4 {[%emt 0:00:00]} c5 {[%emt 0:05:36]} 2. Nf3 {[%emt 0:00:00]} a6 {[%emt 0:00:48]} 3. c4 {[%emt 0:02:50]} e6 {[%emt 0:00:14]} 4. d4 {[%emt 0:00:55]} cxd4 {[%emt 0:00:08]} 5. Nxd4 {[%emt 0:00:34]} Nf6 {[%emt 0:00:12]} 6. Nc3 {[%emt 0:04:08]} Bb4 {[%emt 0:01:37]} 7. Bd3 {[%emt 0:12:56]} Qc7 {[%emt 0:02:31]} 8. O-O {[%emt 0:04:25]} Nc6 {[%emt 0:00:50]} 9. Nxc6 {[%emt 0:01:34]} dxc6 {[%emt 0:00:59]} 10. Qb3 {[%emt 0:04:58]} Ng4 {[%emt 0:03:06]} 11. g3 {[%emt 0:01:52]} Bc5 {[%emt 0:00:11]} 12. Na4 {[%emt 0:03:20]} Bd4 {[%emt 0:00:31]} 13. c5 {[%emt 0:00:36]} h5 {[%emt 0:03:17]} 14. Be2 {[%emt 0:01:24]} Rb8 {[%emt 0:01:06]} 15. Kg2 {[%emt 0:01:21]} e5 {[%emt 0:00:11]} 16. f3 {[%emt 0:01:41]} Nf6 {[%emt 0:00:56]} 17. Be3 {[%emt 0:01:35]} Be6 {[%emt 0:02:55]} 18. Qa3 {[%emt 0:00:25]} Rd8 {[%emt 0:04:35]} 19. Rad1 {[%emt 0:01:40]} h4 {[%emt 0:01:01]} 20. Rh1 {[%emt 0:01:30]} hxg3 {[%emt 0:04:54]} 21. hxg3 {[%emt 0:00:26]} Rxh1 {[%emt 0:00:06]} 22. Kxh1 {[%emt 0:01:31]} Bxa2 {[%emt 0:05:41]} 23. Bxd4 {[%emt 0:14:08]} exd4 {[%emt 0:00:16]} 24. Kg2 {[%emt 0:00:11]} Be6 {[%emt 0:02:27]} 25. Qb4 {[%emt 0:01:54]} a5 {[%emt 0:04:19]} 26. Qb6 {[%emt 0:02:15]} Qe5 {[%emt 0:04:12]} 27. Qxa5 {[%emt 0:01:07]} b5 {[%emt 0:01:04]} 28. Rh1 {[%emt 0:02:26]} Ke7 {[%emt 0:00:42]} 29. Nb6 {[%emt 0:04:17]} d3 {[%emt 0:01:50]} 30. Bd1 {[%emt 0:10:46]} Qxb2+ {[%emt 0:00:14]} 31. Kf1 {[%emt 0:00:18]} Qc1 {[%emt 0:00:26]} 32. Kg2 {[%emt 0:00:56]} Qxc5 {[%emt 0:00:11]} 33. Re1 {[%emt 0:04:28]} d2 {[%emt 0:00:22]} 34. Rh1 {[%emt 0:00:40]} g5 {[%emt 0:02:39]} 35. Rh6 {[%emt 0:01:17]} g4 {[%emt 0:03:02]} 36. e5 {[%emt 0:05:24]} Qxe5 {[%emt 0:00:50]} 37. Qa3+ {[%emt 0:01:34]} c5 {[%emt 0:01:10]} 38. fxg4 {[%emt 0:02:34]} Nxg4 {[%emt 0:02:07]} 39. Rxe6+ {[%emt 0:00:54]} Qxe6 {[%emt 0:01:25]} 40. Qxc5+ {[%emt 0:01:00]} Kf6 {[%emt 0:00:06]} 41. Qc3+ {[%emt 0:03:24]} Kg6 {[%emt 0:00:45]} 42. Bc2+ {[%emt 0:00:40]} f5 {[%emt 0:00:15]} 0-1

[Event "11th Chennai Open-GM 2019"]
[Site "Chennai"]
[Date "2019.01.21"]
[Round "6"]
[White "Sai Vishwesh.C"]
[Black "Popov, Ivan"]
[Result "0-1"]
[ECO "B21"]
[WhiteElo "2250"]
[BlackElo "2588"]
[Annotator "ChessBase"]
[PlyCount "64"]
[EventDate "2019.01.18"]
[EventType "swiss"]
[EventCountry "IND"]
[SourceTitle "playchess.com"]
[Source "ChessBase"]
[SourceQuality "1"]
[TimeControl "5400+30"]

1. e4 {[%emt 0:00:00]} c5 {[%emt 0:03:50]} 2. d4 {[%emt 0:00:16]} cxd4 {[%emt 0:00:21]} 3. c3 {[%emt 0:00:08]} dxc3 {[%emt 0:00:41]} 4. Nxc3 {[%emt 0:00:06]} Nc6 {[%emt 0:00:41]} 5. Nf3 {[%emt 0:00:10]} d6 {[%emt 0:00:32]} 6. Bc4 {[%emt 0:00:06]} a6 {[%emt 0:00:32]} 7. O-O {[%emt 0:00:07]} Nf6 {[%emt 0:00:06]} 8. Qe2 {[%emt 0:03:57]} Bg4 {[%emt 0:00:24]} 9. Rd1 {[%emt 0:00:42]} e6 {[%emt 0:00:48]} 10. Bf4 {[%emt 0:01:56]} Nh5 {[%emt 0:00:25]} 11. Be3 {[%emt 0:03:19]} Ne5 {[%emt 0:00:59]} 12. Nxe5 {[%emt 0:00:12]} Bxe2 {[%emt 0:00:08]} 13. Bxe2 {[%emt 0:00:03]} Nf6 {[%emt 0:04:18]} 14. Nc4 {[%emt 0:22:15]} b5 {[%emt 0:09:55]} 15. e5 {[%emt 0:00:08]} bxc4 {[%emt 0:02:07]} 16. exf6 {[%emt 0:00:05]} gxf6 {[%emt 0:19:57]} 17. Bf3 {[%emt 0:02:01]} d5 {[%emt 0:15:46]} 18. Nxd5 {[%emt 0:02:22]} exd5 {[%emt 0:01:39]} 19. Bxd5 {[%emt 0:01:04]} Rc8 {[%emt 0:01:32]} 20. Bb7 {[%emt 0:00:37]} Qc7 {[%emt 0:00:18]} 21. Bxc8 {[%emt 0:11:09]} Qxc8 {[%emt 0:00:03]} 22. Re1 {[%emt 0:00:31]} Be7 {[%emt 0:07:51]} 23. Bd2 {[%emt 0:01:41]} Qb7 {[%emt 0:00:33]} 24. Rac1 {[%emt 0:03:20]} Rg8 {[%emt 0:05:31]} 25. g3 {[%emt 0:00:06]} Rg4 {[%emt 0:02:25]} 26. Bc3 {[%emt 0:02:07]} Kf8 {[%emt 0:01:16]} 27. a3 {[%emt 0:00:10]} Re4 {[%emt 0:01:31]} 28. Red1 {[%emt 0:00:26]} h5 {[%emt 0:00:33]} 29. h4 {[%emt 0:01:39]} f5 {[%emt 0:00:16]} 30. Rd2 {[%emt 0:00:07]} f4 {[%emt 0:00:48]} 31. Rcd1 {[%emt 0:00:06]} fxg3 {[%emt 0:00:29]} 32. fxg3 {[%emt 0:00:04]} Qc7 {[%emt 0:01:51]} 0-1

[Event "11th Chennai Open-GM 2019"]
[Site "Chennai"]
[Date "2019.01.21"]
[Round "6"]
[White "Kurbonboeva, Sarvinoz"]
[Black "Deepan Chakkravarthy J."]
[Result "1/2-1/2"]
[ECO "A40"]
[WhiteElo "2214"]
[BlackElo "2543"]
[Annotator "ChessBase"]
[PlyCount "80"]
[EventDate "2019.01.18"]
[EventType "swiss"]
[EventCountry "IND"]
[SourceTitle "playchess.com"]
[Source "ChessBase"]
[SourceQuality "1"]
[TimeControl "5400+30"]

1. d4 {[%emt 0:00:38]} Nf6 {[%emt 0:02:53]} 2. c4 {[%emt 0:00:26]} e6 {[%emt 0:00:05]} 3. g3 {[%emt 0:00:21]} Bb4+ {[%emt 0:00:08]} 4. Bd2 {[%emt 0:01:00]} a5 {[%emt 0:00:06]} 5. Bg2 {[%emt 0:00:31]} O-O {[%emt 0:00:08]} 6. Nf3 {[%emt 0:00:15]} d6 {[%emt 0:06:35]} 7. O-O {[%emt 0:00:30]} Bxd2 {[%emt 0:00:04]} 8. Qxd2 {[%emt 0:03:13]} Qe7 {[%emt 0:02:45]} 9. Nc3 {[%emt 0:02:42]} c6 {[%emt 0:05:14]} 10. e4 {[%emt 0:04:17]} e5 {[%emt 0:00:10]} 11. c5 {[%emt 0:16:07]} dxc5 {[%emt 0:08:48]} 12. dxe5 {[%emt 0:00:21]} Ng4 {[%emt 0:00:06]} 13. Qd6 {[%emt 0:07:17]} Re8 {[%emt 0:00:05]} 14. Rfd1 {[%emt 0:04:39]} Nd7 {[%emt 0:00:27]} 15. Qxe7 {[%emt 0:07:53]} Rxe7 {[%emt 0:01:02]} 16. Na4 {[%emt 0:00:09]} g6 {[%emt 0:04:46]} 17. Rac1 {[%emt 0:02:13]} c4 {[%emt 0:02:56]} 18. Bh3 {[%emt 0:19:37]} h5 {[%emt 0:00:43]} 19. Rd6 {[%emt 0:00:03]} b5 {[%emt 0:14:28]} 20. Nc3 {[%emt 0:01:13]} Bb7 {[%emt 0:00:06]} 21. e6 {[%emt 0:03:32]} fxe6 {[%emt 0:00:03]} 22. Nd4 {[%emt 0:05:54]} Nde5 {[%emt 0:13:30]} 23. f3 {[%emt 0:01:46]} c5 {[%emt 0:01:15]} 24. Nxe6 {[%emt 0:01:07]} Nxf3+ {[%emt 0:04:10]} 25. Kg2 {[%emt 0:00:05]} b4 {[%emt 0:02:51]} 26. Kxf3 {[%emt 0:00:33]} bxc3 {[%emt 0:00:09]} 27. Rxc3 {[%emt 0:01:47]} Rae8 {[%emt 0:05:50]} 28. Nxc5 {[%emt 0:02:19]} Bxe4+ {[%emt 0:10:10]} 29. Nxe4 {[%emt 0:00:20]} Rxe4 {[%emt 0:01:05]} 30. Rd2 {[%emt 0:00:36]} Kg7 {[%emt 0:03:05]} 31. Bxg4 {[%emt 0:04:23]} hxg4+ {[%emt 0:00:06]} 32. Kf2 {[%emt 0:00:03]} Kh6 {[%emt 0:03:52]} 33. Rdc2 {[%emt 0:00:30]} Rf8+ {[%emt 0:02:33]} 34. Kg2 {[%emt 0:00:12]} Rc8 {[%emt 0:00:04]} 35. Kf2 {[%emt 0:00:48]} Kg5 {[%emt 0:00:24]} 36. b3 {[%emt 0:03:57]} Rf8+ {[%emt 0:02:12]} 37. Kg2 {[%emt 0:00:07]} cxb3 {[%emt 0:00:05]} 38. axb3 {[%emt 0:00:34]} Rf5 {[%emt 0:00:20]} 39. Rc5 {[%emt 0:03:27]} Rb4 {[%emt 0:01:44]} 40. Rxf5+ {[%emt 0:00:48]} gxf5 {[%emt 0:00:19]} 1/2-1/2

[Event "11th Chennai Open-GM 2019"]
[Site "Chennai"]
[Date "2019.01.21"]
[Round "6"]
[White "Vinoth Kumar, M.."]
[Black "Tran, Tuan Minh"]
[Result "0-1"]
[ECO "A00"]
[WhiteElo "2105"]
[BlackElo "2541"]
[Annotator "RC"]
[PlyCount "82"]
[EventDate "2019.01.18"]
[EventType "swiss"]
[EventCountry "IND"]
[SourceTitle "playchess.com"]
[Source "ChessBase"]
[SourceQuality "1"]
[TimeControl "5400+30"]

1. g3 {[%emt 0:00:00]} Nf6 {[%emt 0:01:23]} 2. Bg2 {[%emt 0:00:00]} e5 {[%emt 0:00:22]} 3. d3 {[%emt 0:00:02]} d5 {[%emt 0:00:18]} 4. Nd2 {[%emt 0:02:09]} c6 {[%emt 0:02:13]} 5. e4 {[%emt 0:00:11]} Bd6 {[%emt 0:00:45]} 6. Nh3 {[%emt 0:00:16]} O-O {[%emt 0:00:17]} 7. f3 {[%emt 0:00:01]} a5 {[%emt 0:08:52]} 8. O-O {[%emt 0:01:38]} a4 9. Kh1 a3 {[%emt 0:01:53]} 10. b3 {[%emt 0:01:11]} Na6 {[%emt 0:02:56]} 11. Nb1 {[%emt 0:07:13]} Nc7 {[%emt 0:00:50]} 12. c3 Nb5 {[%emt 0:12:43]} 13. Qc2 {[%emt 0:01:54]} Qe7 {[%emt 0:03:51]} 14. Nf2 {[%emt 0:06:44]} Re8 {[%emt 0:05:19]} 15. Nd1 {[%emt 0:19:30]} h6 {[%emt 0:03:42]} 16. g4 {[%emt 0:08:36]} d4 {[%emt 0:02:30]} 17. cxd4 {[%emt 0:04:06]} Nxd4 {[%emt 0:00:53]} 18. Qf2 {[%emt 0:00:06]} Ne6 {[%emt 0:09:13]} 19. Nbc3 {[%emt 0:01:03]} Bc5 {[%emt 0:03:29]} 20. Qg3 {[%emt 0:00:42]} Rd8 {[%emt 0:01:02]} 21. Nf2 {[%emt 0:05:38]} Nf4 {[%emt 0:08:09]} 22. Bxf4 {[%emt 0:05:19]} exf4 {[%emt 0:00:07]} 23. Qxf4 {[%emt 0:00:16]} Bd6 {[%emt 0:00:23]} 24. Qd2 {[%emt 0:01:39]} Qe5 {[%emt 0:00:06]} 25. f4 {[%emt 0:00:06]} Qxf4 {[%emt 0:00:04]} 26. Qxf4 {[%emt 0:00:06]} Bxf4 {[%emt 0:00:03]} 27. h3 Be6 {[%emt 0:04:17]} 28. Ne2 {[%emt 0:16:29]} Be5 {[%emt 0:00:48]} 29. Rab1 {[%emt 0:04:13]} c5 {[%emt 0:00:45]} 30. Rfc1 {[%emt 0:02:30]} Rac8 {[%emt 0:00:02]} 31. Bf1 {[%emt 0:00:50]} b5 {[%emt 0:00:15]} 32. Ng1 {[%emt 0:01:48]} Nd7 {[%emt 0:02:01]} 33. Nf3 {[%emt 0:00:15]} Bf4 {[%emt 0:01:10]} 34. Rc2 {[%emt 0:00:42]} Ne5 {[%emt 0:00:11]} 35. Ne1 {[%emt 0:03:09]} Nc6 {[%emt 0:00:09]} 36. Rxc5 {[%emt 0:02:18]} Be3 {[%emt 0:00:03]} 37. Rc2 {[%emt 0:00:18]} Nd4 {[%emt 0:00:04]} 38. Rxc8 {[%emt 0:00:43]} Rxc8 {[%emt 0:00:01]} 39. Kg2 {[%emt 0:02:04]} Rc1 {[%emt 0:00:08]} 40. Rxc1 {[%emt 0:00:37]} Bxc1 {[%emt 0:00:01]} 41. Nd1 {[%emt 0:00:40]} b4 {[%emt 0:00:02]} 0-1